[Event "35th Staufer-Open-A 2025"]
[Site "Schwaebisch Gmuend"]
[Date "2025.01.05"]
[Round "7.13"]
[White "Senthil Maran K"]
[Black "Burian, Simon"]
[Result "1-0"]
[ECO "A43"]
[WhiteElo "2398"]
[BlackElo "2186"]
[Annotator "TA"]
[PlyCount "95"]
[EventDate "2024.11.24"]
[EventType "swiss"]
[EventCountry "GER"]
[SourceTitle "playchess.com"]
[Source "ChessBase"]
[SourceQuality "1"]
[TimeControl "40/6000+30:1200+30"]

{[%evp 9,95,0,56,50,102,80,77,75,83,79,119,118,239,236,255,252,275,132,166,164,164,158,164,148,170,183,237,227,247,202,204,138,147,147,132,136,146,155,154,155,162,153,154,162,260,261,259,197,193,186,189,176,178,174,225,238,240,232,222,230,309,304,328,323,356,344,439,443,432,428,507,498,550,565,554,546,511,481,720,711,1079,1046,1256,771,5185,4988,5181,4702]} 1. d4 {[%emt 0:07:54]} Nf6 {[%emt 0:00:11]} 2. Nf3 {[%emt 0:00:09]} c5 {[%emt 0:00:13]} 3. d5 {[%emt 0:00:08]} b5 {[%emt 0:00:08]} 4. e4 {[%emt 0:00:05]} Nxe4 {[%emt 0:03:30]} 5. Bd3 {[%emt 0:00:03]} Nf6 {[%emt 0:02:31]} (5... Qa5+ $1 $11 6. Nfd2 Nf6) 6. Bxb5 $14 {[%emt 0:00:35]} Qb6 {[%emt 0:05:38]} ({Black should play} 6... g6 $14) 7. Nc3 {[%emt 0:04:21] Strongly threatening Ne5.} e6 {[%emt 0:06:46]} 8. O-O {[%emt 0:05:12] White is better.} Be7 {[%emt 0:06:23]} 9. Ne5 {[%emt 0:04:28]} Ba6 {[%emt 0:18:26] Black is weak on the light squares} 10. a4 {[%emt 0:05:02] White has more active pieces.} Qc7 {[%emt 0:26:11] This move loses the game for Black.} (10... O-O $16 11. Nc4 Qb7) 11. Nc4 $18 {[%emt 0:16:56] And now d6 would win.} exd5 {[%emt 0:03:49]} 12. Ne3 {[%emt 0:04:02]} ({Don't play} 12. Nxd5 $6 Nxd5 13. Bxa6 (13. Qxd5 Bb7 $16) 13... Nxa6 $16) 12... Bb7 {[%emt 0:05:19] [#]} 13. Nexd5 {[%emt 0:11:07]} (13. Nf5 $1 $18 {is the precise move to win.}) 13... Nxd5 $16 {[%emt 0:01:26]} 14. Nxd5 {[%emt 0:00:09]} Bxd5 {[%emt 0:05:30]} 15. Qxd5 {[%emt 0:00:02]} Nc6 {[%emt 0:00:12]} 16. g3 {[%emt 0:01:27]} O-O {[%emt 0:01:53] [#]} 17. Bf4 $1 {[%emt 0:00:20]} Qb7 {[%emt 0:00:06]} (17... Qc8 $142 18. Rad1 Nd4) 18. Rae1 {[%emt 0:00:41] Black must now prevent Rxe7.} Rae8 {[%emt 0:03:37]} 19. b3 {[%emt 0:04:24]} a6 {[%emt 0:01:56]} 20. Bxc6 {[%emt 0:06:26]} dxc6 {[%emt 0:02:47]} 21. Qc4 {[%emt 0:01:02]} Rd8 {[%emt 0:00:46]} 22. Re4 {[%emt 0:01:41]} Rd7 {[%emt 0:03:33]} 23. Rfe1 {[%emt 0:01:01]} h6 {[%emt 0:00:39]} 24. Be3 {[%emt 0:08:32]} Qb4 {[%emt 0:01:54]} 25. Qxb4 {[%emt 0:02:58]} cxb4 {[%emt 0:00:05]} 26. Bxh6 {[%emt 0:00:25]} gxh6 {[%emt 0:02:25]} (26... Bc5 {was called for.}) 27. Rxe7 $18 {[%emt 0:00:09][%mdl 4096] Endgame. KRR-KRR} Rd2 {[%emt 0:01:48]} 28. R1e2 {[%emt 0:02:04]} Rfd8 {[%emt 0:00:11]} 29. Kf1 {[%emt 0:00:10]} R8d5 {[%emt 0:02:34]} 30. Rxd2 {[%emt 0:00:46]} Rxd2 {[%emt 0:00:05] KR-KR} 31. Re2 {[%emt 0:00:05]} Rd5 {[%emt 0:01:54]} (31... Rd1+ $142 32. Re1 Rd2) 32. Re4 {[%emt 0:03:48]} a5 {[%emt 0:00:16]} 33. Rc4 {[%emt 0:01:58]} c5 {[%emt 0:00:05]} 34. Ke2 {[%emt 0:00:07]} Kf8 {[%emt 0:00:51]} 35. Re4 {[%emt 0:00:33]} Rh5 {[%emt 0:01:07]} 36. h4 {[%emt 0:00:30]} Rd5 {[%emt 0:00:05]} 37. f4 {[%emt 0:00:27]} Rd6 {[%emt 0:01:23]} 38. Re5 {[%emt 0:00:31] White is clearly winning.} Rc6 {[%emt 0:00:21]} 39. Kd3 {[%emt 0:01:12]} Rd6+ {[%emt 0:01:03]} 40. Ke4 {[%emt 0:00:35]} (40. Kc4 Rg6 41. Rxc5 (41. Kxc5 Rxg3 42. Kb6 Rc3 $18) 41... Rxg3 42. Rxa5 Rc3+ 43. Kxb4 Rxc2) 40... c4 {[%emt 0:00:22]} 41. Rxa5 {[%emt 0:22:29]} Rd2 {[%emt 0:21:13]} 42. bxc4 {[%emt 0:02:49]} Rxc2 {[%emt 0:00:11]} 43. Kd4 {[%emt 0:00:21]} Rd2+ {[%emt 0:00:53]} (43... Ra2 $142 44. c5 Rb2) 44. Kc5 {[%emt 0:00:40]} b3 {[%emt 0:00:28][%cal Bb4b3,Bb3b2][%mdl 32]} 45. Rb5 {[%emt 0:00:08]} b2 {[%emt 0:01:03]} 46. a5 {[%emt 0:00:20][%cal Ba4a5,Ba5a6][%mdl 32]} Rg2 {[%emt 0:00:10]} 47. a6 {[%emt 0:00:00] White threatens a7 and mate.} Rxg3 {[%emt 0:00:08]} 48. Rxb2 {[%emt 0:00:11] Weighted Error Value: White=0.12 (very precise) /Black=0.30.  Mistake:       	White=1     	Black=6      Inaccurate:     	White=1     	Black=3      OK:         	White=22    	Black=11     Best:        	White=2     	Black=2} 1-0

[Event "35th Staufer-Open-A 2025"]
[Site "Schwaebisch Gmuend"]
[Date "2025.01.05"]
[Round "7.14"]
[White "Vuckovic, Zarko"]
[Black "Poysti, Nathanael"]
[Result "1-0"]
[ECO "B10"]
[WhiteElo "2344"]
[BlackElo "2185"]
[Annotator "TA"]
[PlyCount "79"]
[EventDate "2024.11.24"]
[EventType "swiss"]
[EventCountry "GER"]
[SourceTitle "playchess.com"]
[Source "ChessBase"]
[SourceQuality "1"]
[TimeControl "40/6000+30:1200+30"]

{[%evp 9,79,-5,16,20,20,5,14,25,21,14,20,-18,22,26,27,24,55,58,55,56,69,50,56,58,52,52,68,36,82,75,86,33,42,34,81,70,87,63,83,93,97,96,92,92,92,92,92,97,82,82,87,89,87,82,109,85,122,117,229,254,451,398,446,443,519,519,519,519,514,497,462,459]} 1. e4 {[%emt 0:00:01]} c6 {[%emt 0:00:01]} 2. Nf3 {[%emt 0:00:07]} d5 {[%emt 0:00:04]} 3. d3 {[%emt 0:00:04]} dxe4 {[%emt 0:00:06]} 4. dxe4 {[%emt 0:00:05]} Qxd1+ {[%emt 0:00:04]} 5. Kxd1 {[%emt 0:00:05]} Nf6 {[%emt 0:00:04]} 6. Nfd2 {[%emt 0:00:04]} h5 {[%emt 0:00:06]} 7. h4 {[%emt 0:01:15]} Be6 {[%emt 0:01:47]} 8. f3 {[%emt 0:00:19] The position is equal.} Nfd7 {[%emt 0:00:53]} 9. Nb3 {[%emt 0:01:20]} f6 {[%emt 0:00:34]} 10. c3 {[%emt 0:01:01]} Bf7 {[%emt 0:00:22]} 11. Kc2 {[%emt 0:00:19]} e5 {[%emt 0:00:09]} 12. Be3 {[%emt 0:00:05]} Kd8 {[%emt 0:22:54]} 13. N1d2 {[%emt 0:01:08]} Kc7 {[%emt 0:04:05]} 14. a4 {[%emt 0:00:12][%cal Ba2a4,Ba4a5][%mdl 32]} Na6 {[%emt 0:13:27]} 15. a5 {[%emt 0:10:37]} Nac5 {[%emt 0:02:58]} 16. Nc1 {[%emt 0:03:55]} Ne6 {[%emt 0:00:31]} 17. b4 {[%emt 0:00:14]} Be7 {[%emt 0:08:51]} 18. Nd3 {[%emt 0:04:32]} g5 {[%emt 0:01:04]} (18... Rhc8 $14 {might be stronger.}) 19. g3 {[%emt 0:02:50]} Rhg8 {[%emt 0:01:44]} 20. Bh3 {[%emt 0:03:50]} (20. hxg5 $16 fxg5 21. Bh3) 20... gxh4 $14 {[%emt 0:01:51]} 21. gxh4 {[%emt 0:01:54]} Bd6 {[%emt 0:01:10]} (21... c5 $14) 22. Rag1 {[%emt 0:06:44] White is more active.} a6 {[%emt 0:04:40]} 23. c4 {[%emt 0:17:45][%cal Bc3c4,Bc4c5][%mdl 32]} Rxg1 {[%emt 0:11:46]} 24. Rxg1 {[%emt 0:01:22]} Rg8 {[%emt 0:00:32]} 25. Rxg8 {[%emt 0:02:24]} Bxg8 {[%emt 0:00:01]} 26. c5 {[%emt 0:01:07]} Be7 {[%emt 0:03:06]} 27. Nf1 {[%emt 0:01:54]} Ndf8 {[%emt 0:00:59]} 28. f4 {[%emt 0:07:49]} exf4 {[%emt 0:01:36]} 29. Nxf4 {[%emt 0:00:06]} ({Much less strong is} 29. Bxf4+ $6 Kd8 $16) 29... Nxf4 {[%emt 0:04:16]} 30. Bxf4+ {[%emt 0:01:07]} Kd8 {[%emt 0:00:03]} 31. Ne3 {[%emt 0:00:14]} Ne6 {[%emt 0:05:43]} 32. Bg3 {[%emt 0:00:38]} Nd4+ {[%emt 0:00:50]} 33. Kd3 {[%emt 0:01:04]} Be6 {[%emt 0:00:05] [#]} (33... Ne6 $16) 34. Bg2 $1 $18 {[%emt 0:01:05]} Nb3 {[%emt 0:03:17]} (34... Nb5 35. Bf3 Bf7) 35. Bf3 {[%emt 0:00:53]} Nc1+ {[%emt 0:02:26]} 36. Kc2 {[%emt 0:01:30] White is clearly winning.} Na2 {[%emt 0:00:30]} 37. Be1 {[%emt 0:00:08]} ({Less strong is} 37. Bxh5 Nxb4+ 38. Kd2 Bxc5 $11) 37... Bf7 {[%emt 0:01:21]} 38. Nf5 {[%emt 0:00:26]} Kd7 {[%emt 0:02:25]} 39. Kb2 {[%emt 0:03:52]} Bf8 {[%emt 0:01:24]} 40. Bd2 {[%emt 0:02:17] Weighted Error Value: White=0.08 (flawless) /Black=0.23 (precise) .  Mistake:       	White=1     	Black=4      Inaccurate:     	White=2     	Black=4      OK:         	White=14    	Black=7      Best:        	White=2     	Black=2} 1-0

[Event "35th Staufer-Open-A 2025"]
[Site "Schwaebisch Gmuend"]
[Date "2025.01.05"]
[Round "7.16"]
[White "Ehmann, Thilo"]
[Black "Albrecht, Neil"]
[Result "1-0"]
[ECO "C97"]
[WhiteElo "2335"]
[BlackElo "2055"]
[Annotator "TA"]
[PlyCount "99"]
[EventDate "2024.11.24"]
[EventType "swiss"]
[EventCountry "GER"]
[SourceTitle "playchess.com"]
[Source "ChessBase"]
[SourceQuality "1"]
[TimeControl "40/6000+30:1200+30"]

{[%evp 29,99,9,31,27,41,23,19,12,25,24,42,0,29,29,27,21,22,0,33,0,32,0,0,0,13,-13,28,0,0,0,17,2,19,0,40,0,45,54,72,-9,14,-59,-53,-87,-63,-82,-8,-18,-31,-25,-18,-36,-77,-42,0,0,262,244,224,257,323,318,440,427,414,393,29987,29988,29990,29991,29993,29993]} 1. e4 {[%emt 0:06:00]} e5 {[%emt 0:01:39]} 2. Nf3 {[%emt 0:00:08]} Nc6 {[%emt 0:00:20]} 3. Bb5 {[%emt 0:00:03][%cal Bf1b5,Bb5a4,Ba4b3][%mdl 32]} a6 {[%emt 0:00:06]} 4. Ba4 {[%emt 0:00:03]} Nf6 {[%emt 0:00:10]} 5. d3 {[%emt 0:00:12]} b5 {[%emt 0:00:46]} 6. Bb3 {[%emt 0:00:04]} Be7 {[%emt 0:01:05]} 7. O-O {[%emt 0:00:13]} O-O {[%emt 0:00:28]} 8. Re1 {[%emt 0:00:06]} d6 {[%emt 0:01:46]} 9. Bd2 {[%emt 0:00:58]} Bg4 {[%emt 0:09:44]} 10. c3 {[%emt 0:00:46]} Na5 {[%emt 0:02:23]} 11. Bc2 {[%emt 0:00:03]} c5 {[%emt 0:00:13]} 12. h3 {[%emt 0:00:03]} Be6 {[%emt 0:04:37]} 13. d4 {[%emt 0:01:34]} Nc4 {[%emt 0:04:15]} 14. Bc1 {[%emt 0:00:27]} Qc7 {[%emt 0:00:59]} 15. d5 {[%emt 0:03:37]} Bc8 {[%emt 0:03:21]} 16. b3 {[%emt 0:10:04]} Nb6 {[%emt 0:00:14]} 17. Nbd2 {[%emt 0:00:11]} a5 {[%emt 0:03:12]} 18. a4 {[%emt 0:04:46]} bxa4 {[%emt 0:05:36]} 19. bxa4 {[%emt 0:00:10]} g6 {[%emt 0:06:19]} 20. Nf1 {[%emt 0:04:26]} Nh5 {[%emt 0:01:16]} 21. Bh6 {[%emt 0:00:33]} Re8 {[%emt 0:02:27]} 22. h4 {[%emt 0:04:46]} Bf8 {[%emt 0:04:22]} 23. Bc1 {[%emt 0:01:01]} Bg7 {[%emt 0:02:35]} 24. g3 {[%emt 0:00:43]} Rf8 {[%emt 0:01:34]} 25. N3h2 {[%emt 0:01:14]} Nf6 {[%emt 0:03:49]} 26. Ne3 {[%emt 0:02:39]} h5 {[%emt 0:05:24]} 27. Kh1 {[%emt 0:02:24]} Qd7 {[%emt 0:03:05]} 28. f3 {[%emt 0:00:53]} Ba6 {[%emt 0:06:01]} 29. Rg1 {[%emt 0:06:27]} Kh8 {[%emt 0:04:05]} 30. g4 {[%emt 0:00:45]} Rab8 {[%emt 0:01:32]} 31. Ra2 {[%emt 0:02:14]} Nc8 {[%emt 0:02:28][%cal Bb6c8,Bc8e7,Be7d5,Bd5c3][%mdl 32]} 32. Nef1 {[%emt 0:04:48]} Bc4 {[%emt 0:00:51]} 33. Ra1 {[%emt 0:00:17]} Ne7 {[%emt 0:02:16]} 34. Ng3 {[%emt 0:14:27]} (34. Ne3 $16 Ba6 35. Rg2) 34... hxg4 $11 {[%emt 0:03:20]} 35. fxg4 {[%emt 0:00:21] [#]} ({Better is} 35. Nxg4 $11 Nh7 36. Kh2) 35... Nexd5 $1 $15 {[%emt 0:02:37]} 36. g5 {[%emt 0:01:06]} (36. exd5 Bxd5+) 36... Nxc3 {[%emt 0:01:15]} 37. Qe1 {[%emt 0:03:20] [#]} (37. Qf3 Nfxe4 38. Nxe4 Nxe4 39. Bxe4 d5 $17) 37... Nfxe4 {[%emt 0:02:18]} 38. Nxe4 $11 {[%emt 0:00:16]} Nxe4 {[%emt 0:00:14]} ({Much weaker is} 38... Ne2 $6 39. h5 Qh3 (39... gxh5 $2 {perishes.} 40. Qh4 $18) (39... Nxg1 $2 40. Kxg1 Qh3 41. h6 $18) 40. h6 $16) 39. Bxe4 {[%emt 0:00:04][%cal Oh4h5]} d5 {[%emt 0:01:27]} 40. Bg2 $1 {[%emt 0:00:08][%cal Oh4h5]} e4 {[%emt 0:02:07][%mdl 1024] Black has compensation. White is weak on the light squares} 41. Ra3 {[%emt 0:23:15][%cal Oh4h5]} Bd3 {[%emt 0:30:52]} (41... Rb1 {is more complex.} 42. h5 Bd4 43. Qh4 Kg7) 42. h5 {[%emt 0:03:59]} Rb1 $2 {[%emt 0:05:51][%mdl 8192]} (42... gxh5 $11 43. Qh4 Qf5) 43. Qh4 $1 $18 {[%emt 0:01:18]} Kg8 {[%emt 0:00:39]} 44. Ng4 $1 {[%emt 0:10:22]} Qf5 {[%emt 0:00:00]} 45. Ra2 $1 {[%emt 0:00:00] Strongly threatening Rf2. Prevents Be2} gxh5 {[%emt 0:00:00] [#]} 46. Nf6+ $1 {[%emt 0:00:00]} Bxf6 {[%emt 0:00:00]} 47. gxf6 {[%emt 0:00:00] Threatening mate with Bf1+.} Kh8 $2 {[%emt 0:00:00] [#]} (47... Rxc1 $18 48. Rxc1 Kh7 49. Rxc5 (49. Rf2 Qg4 $18) 49... Rg8) 48. Bh3 $1 {[%emt 0:00:00]} Qf3+ {[%emt 0:00:00]} 49. Kh2 {[%emt 0:00:00]} Rb6 {[%emt 0:00:00]} 50. Rf2 {[%emt 0:00:00]} 1-0

[Event "35th Staufer-Open-A 2025"]
[Site "Schwaebisch Gmuend"]
[Date "2025.01.05"]
[Round "7.17"]
[White "Smolny, Frieder"]
[Black "Boder, Jan"]
[Result "0-1"]
[ECO "C36"]
[WhiteElo "2114"]
[BlackElo "2324"]
[Annotator "TA"]
[PlyCount "70"]
[EventDate "2024.11.24"]
[EventType "swiss"]
[EventCountry "GER"]
[SourceTitle "playchess.com"]
[Source "ChessBase"]
[SourceQuality "1"]
[TimeControl "40/6000+30:1200+30"]

{[%evp 10,69,6,0,-6,-10,0,0,0,0,0,0,0,0,0,0,19,-47,-58,-305,-300,-324,-313,-297,-313,-306,-323,-321,-305,-338,-318,-344,-341,-388,-393,-378,-308,-481,-341,-352,-327,-335,-290,-312,-309,-485,-472,-482,-516,-446,-359,-360,-310,-346,-361,-728,-693,-29997,-29998,-29998,-29999,-29999]} 1. e4 {[%emt 0:00:48]} e5 {[%emt 0:00:10]} 2. f4 {[%emt 0:00:05]} d5 {[%emt 0:02:52]} 3. exd5 {[%emt 0:00:28]} exf4 {[%emt 0:00:08]} 4. Nf3 {[%emt 0:00:09]} Nf6 {[%emt 0:02:58]} 5. Bb5+ {[%emt 0:00:09]} Bd7 {[%emt 0:08:36]} 6. Bc4 {[%emt 0:01:13]} Qe7+ {[%emt 0:11:00]} 7. Kf1 {[%emt 0:04:33]} Bg4 {[%emt 0:14:32]} 8. d4 {[%emt 0:07:34]} g5 {[%emt 0:03:17]} 9. Nc3 {[%emt 0:01:15]} Nbd7 {[%emt 0:01:32]} 10. Qd3 $1 {[%emt 0:02:43][%cal Oc1f4]} Bxf3 {[%emt 0:04:25]} 11. gxf3 {[%emt 0:01:56][%cal Oc1f4]} O-O-O {[%emt 0:02:52]} 12. Bd2 {[%emt 0:05:07] And now Re1 would win.} Nb6 $1 {[%emt 0:02:10]} 13. Re1 {[%emt 0:12:17]} (13. Qf5+ $11 Qd7 14. Qxd7+ (14. Qxf6 $2 Nxc4 15. Qxh8 Qh3+ 16. Kf2 Nxd2 $19) 14... Nfxd7 (14... Rxd7 15. Bd3 $14) 15. Bb3) 13... Qd7 $15 {[%emt 0:01:14]} 14. Re5 $2 {[%emt 0:18:09]} (14. h4 $15 Nxc4 (14... Nbxd5 15. Nxd5 Nxd5 16. hxg5 $16) 15. Qxc4) 14... Bd6 {[%emt 0:11:43]} 15. Re2 {[%emt 0:02:54]} Qh3+ {[%emt 0:02:49]} 16. Ke1 {[%emt 0:00:24]} Nxc4 {[%emt 0:07:25]} 17. Qxc4 {[%emt 0:00:14]} Qxf3 {[%emt 0:01:14]} 18. Rf1 {[%emt 0:00:49]} Qg4 {[%emt 0:00:10]} 19. Nb5 {[%emt 0:05:07]} a6 {[%emt 0:03:18]} 20. Nxd6+ {[%emt 0:30:12]} Rxd6 {[%emt 0:00:26]} 21. Bb4 {[%emt 0:00:33]} Rd7 {[%emt 0:07:26]} 22. d6 {[%emt 0:04:17]} Re8 {[%emt 0:00:14]} 23. Rff2 {[%emt 0:06:09]} (23. Rxe8+ $142 Nxe8 24. dxc7) 23... f3 {[%emt 0:01:48]} 24. Rxe8+ {[%emt 0:00:28]} Nxe8 {[%emt 0:00:02][%cal Bf6e8,Be8d6,Bd6e4,Be4f2][%mdl 32]} 25. Qd3 {[%emt 0:00:57]} Nxd6 {[%emt 0:01:04]} (25... cxd6 26. Qxf3 Re7+ (26... Qxd4 $2 27. Bc3 $19) 27. Kf1 Qxd4 28. Qc3+ Qxc3 29. Bxc3 $19) 26. Rxf3 {[%emt 0:00:46]} Ne4 {[%emt 0:04:11]} 27. d5 {[%emt 0:01:32] [#]} (27. Bc3 $142) 27... Rxd5 $3 $19 {[%emt 0:01:59][%mdl 512]} 28. Qxd5 {[%emt 0:01:43]} Qxf3 {[%emt 0:00:04][%mdl 4096] Endgame KQB-KQN. Black is two pawns up.} 29. c4 {[%emt 0:01:23]} Qe3+ {[%emt 0:06:12]} 30. Kd1 {[%emt 0:00:23]} Nf2+ {[%emt 0:00:15]} ({Not} 30... Qf3+ 31. Kc2 $17) 31. Kc2 {[%emt 0:00:09]} Qe2+ {[%emt 0:00:07]} 32. Bd2 $2 {[%emt 0:01:30]} (32. Kb3 Qd3+ 33. Qxd3 Nxd3 34. Be7) 32... Ne4 {[%emt 0:00:35]} 33. Qxf7 {[%emt 0:00:32][%cal Rf7e8]} Qxd2+ {[%emt 0:00:11]} 34. Kb3 {[%emt 0:00:08]} Nc5+ {[%emt 0:00:35]} 35. Ka3 {[%emt 0:00:07]} Qa5# {[%emt 0:00:40]} 0-1

[Event "35th Staufer-Open-A 2025"]
[Site "Schwaebisch Gmuend"]
[Date "2025.01.05"]
[Round "7.18"]
[White "Willim, Michael"]
[Black "Skembris, Spyridon"]
[Result "0-1"]
[ECO "E91"]
[WhiteElo "2019"]
[BlackElo "2264"]
[Annotator "TA"]
[PlyCount "144"]
[EventDate "2024.11.24"]
[EventType "swiss"]
[EventCountry "GER"]
[SourceTitle "playchess.com"]
[Source "ChessBase"]
[SourceQuality "1"]
[TimeControl "40/6000+30:1200+30"]

{[%evp 51,144,33,69,80,83,29,83,60,133,0,78,68,82,56,70,0,77,0,57,56,87,62,62,70,139,123,193,193,207,189,195,202,139,0,227,216,239,227,231,225,314,228,225,239,229,202,199,197,191,108,261,168,384,383,445,420,29977,29978,2396,57,69,64,84,39,79,0,0,0,8,8,8,8,8,0,31,0,8,8,8,0,0,-36,-8,-50,0,-232,-231,-477,-458,-433,-237,-29987,-29988,-29994,-678]} 1. d4 {[%emt 0:00:08]} Nf6 {[%emt 0:04:27]} 2. c4 {[%emt 0:00:15]} c5 {[%emt 0:00:08]} 3. d5 {[%emt 0:00:15]} g6 {[%emt 0:01:27]} 4. Nc3 {[%emt 0:00:22]} Bg7 {[%emt 0:00:18]} 5. e4 {[%emt 0:04:15]} d6 {[%emt 0:01:02]} 6. Nf3 {[%emt 0:00:31]} O-O {[%emt 0:00:15]} 7. Be2 {[%emt 0:00:11]} e6 {[%emt 0:00:29]} 8. O-O {[%emt 0:01:31]} exd5 {[%emt 0:00:22]} 9. exd5 {[%emt 0:02:08]} a6 {[%emt 0:03:28]} 10. a4 {[%emt 0:01:15]} Bg4 {[%emt 0:00:41]} 11. Re1 {[%emt 0:09:21]} Re8 {[%emt 0:04:48]} 12. Nd2 {[%emt 0:05:10]} Bxe2 {[%emt 0:02:56]} 13. Rxe2 {[%emt 0:00:09]} Nbd7 {[%emt 0:04:12]} 14. Nf3 {[%emt 0:02:44]} Qb6 {[%emt 0:02:46]} 15. a5 {[%emt 0:20:00]} Qc7 {[%emt 0:00:30]} 16. h3 {[%emt 0:00:05]} Rxe2 {[%emt 0:00:19]} 17. Qxe2 {[%emt 0:00:33]} Re8 {[%emt 0:00:07]} 18. Qc2 {[%emt 0:00:19]} h6 {[%emt 0:09:00]} 19. Bf4 {[%emt 0:02:38]} Kh7 {[%emt 0:12:54]} 20. g4 {[%emt 0:04:31]} Re7 {[%emt 0:01:54]} 21. Kg2 {[%emt 0:05:42]} Ne8 {[%emt 0:02:40]} 22. Qd2 {[%emt 0:07:17]} Ndf6 {[%emt 0:02:13]} 23. Qc2 {[%emt 0:02:33]} Ng8 {[%emt 0:04:43]} 24. Qd2 {[%emt 0:05:03]} Nef6 {[%emt 0:01:12]} 25. Qc2 {[%emt 0:00:28]} Nd7 {[%emt 0:02:11]} 26. Bg3 {[%emt 0:02:20]} (26. Ne4 $16 Ne5 27. Ra3) 26... Ne5 {[%emt 0:02:36]} 27. Nd2 {[%emt 0:00:46]} Nf6 {[%emt 0:04:30]} 28. Bh4 {[%emt 0:16:26]} (28. Re1 $16) 28... Re8 {[%emt 0:02:38]} (28... Kg8 $11 {keeps the balance.}) 29. Nce4 {[%emt 0:02:04]} Ned7 {[%emt 0:01:45]} (29... Nxe4 $14 30. Nxe4 b6) 30. Nc3 {[%emt 0:04:55]} (30. Bg3 $16 Nxe4 31. Nxe4) 30... Kg8 {[%emt 0:09:07]} (30... Ne5 $1 $11) 31. Ra3 $16 {[%emt 0:00:11]} Nh7 {[%emt 0:02:41]} 32. Nf3 {[%emt 0:02:36]} Ne5 {[%emt 0:03:19]} 33. Nd2 {[%emt 0:00:06]} Nd7 $1 {[%emt 0:06:58]} 34. Nf3 {[%emt 0:00:16]} (34. Nce4 $16) 34... Nhf6 {[%emt 0:06:42]} (34... Ne5 $11) 35. Bg3 {[%emt 0:01:40]} Kh7 {[%emt 0:04:13]} 36. Rb3 {[%emt 0:01:46]} Kg8 {[%emt 0:02:06]} 37. Kh2 {[%emt 0:04:07]} h5 {[%emt 0:00:40]} (37... Re7 $14) 38. g5 $16 {[%emt 0:00:29]} Nh7 {[%emt 0:00:06]} (38... h4 $16 39. Nxh4 (39. Bxh4 Nh5 $16) 39... Nh5) 39. Ne4 $18 {[%emt 0:00:33]} Ne5 {[%emt 0:01:03]} 40. Nfd2 {[%emt 0:00:35]} Bf8 {[%emt 0:02:29]} 41. Rb6 {[%emt 0:04:46]} Nd7 {[%emt 0:14:18]} 42. Rb3 {[%emt 0:02:07]} (42. Bxd6 $6 Bxd6+ 43. Rxd6 Nxg5 $11) (42. Nxd6 $16 Bxd6 43. Bxd6 (43. Rxd6 Ne5 $16)) 42... Ne5 $1 $18 {[%emt 0:00:54]} 43. Kg2 {[%emt 0:00:14]} Nd7 {[%emt 0:00:58]} 44. h4 {[%emt 0:03:53]} Rb8 {[%emt 0:00:24]} 45. Re3 {[%emt 0:03:52]} b5 {[%emt 0:00:55]} 46. axb6 {[%emt 0:00:14]} Rxb6 {[%emt 0:00:16]} 47. Rb3 {[%emt 0:00:29]} Rxb3 {[%emt 0:02:09]} 48. Qxb3 {[%emt 0:00:09]} f5 {[%emt 0:00:22]} 49. gxf6 {[%emt 0:00:25]} Ndxf6 {[%emt 0:00:13]} 50. Qf3 {[%emt 0:00:44]} (50. Qd3 $18) 50... Ng4 $2 {[%emt 0:01:39]} (50... Ne8 $16) 51. Qf4 {[%emt 0:00:52]} Qd7 $2 {[%emt 0:00:13]} (51... Ne5 52. Qe3 Bg7) 52. Nxd6 $18 {[%emt 0:00:53]} Bh6 {[%emt 0:00:19]} 53. Qe4 $1 {[%emt 0:00:45]} Bxd2 {[%emt 0:00:48]} (53... Nf8 $18 54. Nb3 Qa7) 54. Qxg6+ {[%emt 0:00:11]} Qg7 {[%emt 0:00:25]} 55. Qe8+ $2 {[%emt 0:01:16]} (55. Qxh5 Nhf6 56. Qf5 Kh8 $11) (55. Qe6+ $18 Kh8 56. Nf7+ Qxf7 57. Qxf7) 55... Nf8 $14 {[%emt 0:00:22]} 56. Qxh5 {[%emt 0:00:27]} Nh6 {[%emt 0:03:15]} 57. Ne4 {[%emt 0:01:13]} Bf4 {[%emt 0:01:20] [#]} 58. d6 {[%emt 0:05:27]} ({Much worse is} 58. Nxc5 Bxg3 59. fxg3 Qxb2+ 60. Kh3 Qb1 61. Qxh6 Qf1+ 62. Kh2 Qf2+ 63. Kh1 Qf1+ 64. Kh2 Qe2+ 65. Kg1 Qe1+ 66. Kg2 Qe2+ 67. Kg1 Qe1+ 68. Kg2 Qe2+ 69. Kg1 $11) ({White should try} 58. b3 $1 $16) 58... Bxg3 $11 {[%emt 0:00:22]} 59. Nxg3 {[%emt 0:00:25]} Nd7 {[%emt 0:01:39]} 60. Qe8+ {[%emt 0:00:40]} Kh7 {[%emt 0:00:18]} 61. Qe4+ {[%emt 0:00:37]} Kh8 {[%emt 0:01:30]} 62. Qe8+ {[%emt 0:00:16]} Ng8 {[%emt 0:00:31]} 63. h5 {[%emt 0:00:35]} Ndf6 {[%emt 0:00:58]} 64. Qe5 {[%emt 0:00:01]} Nd7 {[%emt 0:00:36]} 65. Qe6 {[%emt 0:00:56]} (65. Qxg7+ Kxg7 66. Kf3 Ngf6 67. Kf4) 65... Ngf6 {[%emt 0:00:19]} 66. Kf1 {[%emt 0:01:01]} Qg8 {[%emt 0:00:19]} 67. Qe2 {[%emt 0:01:40]} (67. Qxg8+ {simplifies} Kxg8 68. Ke2 Ne5 69. b3) 67... Qg4 {[%emt 0:00:02]} (67... Qg5 $1 $15) 68. Qc2 $2 {[%emt 0:01:17]} (68. Qxg4 $11 Nxg4 69. Ke2) 68... Nxh5 $19 {[%emt 0:00:21]} 69. Nf5 $2 {[%emt 0:00:59]} (69. Ne2) 69... Nf4 $19 {[%emt 0:00:54]} 70. Ne3 {[%emt 0:01:23]} Qh3+ {[%emt 0:01:07]} (70... Qf3 $142 {[%cal Rf3h1]} 71. Kg1 Qh3) 71. Kg1 $2 {[%emt 0:00:06]} (71. Ke1 $19) 71... Ne5 {[%emt 0:00:24]} 72. Qd1 {[%emt 0:00:30]} Nf3+ {[%emt 0:00:09]} 0-1